[Event "Live Chess"]
[Site "Chess.com"]
[Date "2024.06.02"]
[Round "-"]
[White "Cruiseylee78"]
[Black "StoreySniper"]
[Result "0-1"]
[WhiteElo "1687"]
[BlackElo "2534"]
[TimeControl "300"]
[EndTime "16:48:13 PDT"]
[Termination "StoreySniper won by resignation"]

1. d4 {[%clk 0:04:53.7]} 1... g6 {[%clk 0:04:59]} 2. Bf4 {[%clk 0:04:52.3]} 2...
Bg7 {[%clk 0:04:58.3]} 3. e3 {[%clk 0:04:51.8]} 3... Nf6 {[%clk 0:04:55]} 4. Bd3
{[%clk 0:04:49.8]} 4... c5 {[%clk 0:04:53.7]} 5. c3 {[%clk 0:04:47.8]} 5... Nh5
{[%clk 0:04:51.6]} 6. Bg3 {[%clk 0:04:47.2]} 6... cxd4 {[%clk 0:04:48.9]} 7.
exd4 {[%clk 0:04:44.7]} 7... Nc6 {[%clk 0:04:46.6]} 8. Nf3 {[%clk 0:04:35.3]}
8... d6 {[%clk 0:04:43.5]} 9. Nbd2 {[%clk 0:04:04]} 9... O-O {[%clk 0:04:28.5]}
10. Qc2 {[%clk 0:03:59.5]} 10... Bg4 {[%clk 0:04:22.1]} 11. O-O-O {[%clk
0:03:52.8]} 11... Rc8 {[%clk 0:04:18.6]} 12. Qb3 {[%clk 0:03:44.8]} 12... Nxd4
{[%clk 0:04:12]} 13. Nxd4 {[%clk 0:03:40.9]} 13... Bxd4 {[%clk 0:04:07.1]} 14.
f3 {[%clk 0:03:36.4]} 14... Be6 {[%clk 0:04:04.5]} 15. Qb4 {[%clk 0:03:32]}
15... Bg7 {[%clk 0:03:46.1]} 16. Nb3 {[%clk 0:03:20.4]} 16... Nxg3 {[%clk
0:03:32.6]} 17. hxg3 {[%clk 0:03:16.5]} 17... b6 {[%clk 0:03:26.4]} 18. Qh4
{[%clk 0:03:10.8]} 18... h6 {[%clk 0:03:25.1]} 19. Rde1 {[%clk 0:03:06.9]} 19...
Bxb3 {[%clk 0:03:18.7]} 20. axb3 {[%clk 0:03:04.1]} 20... e5 {[%clk 0:03:15.2]}
21. f4 {[%clk 0:02:59.1]} 21... Qxh4 {[%clk 0:03:13.2]} 22. Rxh4 {[%clk
0:02:54.5]} 22... Rfe8 {[%clk 0:03:02]} 23. Kd2 {[%clk 0:02:49]} 23... d5 {[%clk
0:02:54.5]} 24. fxe5 {[%clk 0:02:41.5]} 24... Bxe5 {[%clk 0:02:48]} 25. Bb5
{[%clk 0:02:37]} 25... Bxg3 {[%clk 0:02:42.5]} 26. Rxe8+ {[%clk 0:02:28.9]}
26... Rxe8 {[%clk 0:02:38.6]} 27. Bxe8 {[%clk 0:02:26.1]} 27... Bxh4 {[%clk
0:02:37.5]} 28. Bc6 {[%clk 0:02:21.4]} 28... Bg5+ {[%clk 0:02:36.2]} 29. Kd3
{[%clk 0:02:18.4]} 29... Kf8 {[%clk 0:02:31.5]} 30. Bxd5 {[%clk 0:02:12.3]}
30... Ke7 {[%clk 0:02:30.5]} 31. Kc4 {[%clk 0:02:09.4]} 31... f5 {[%clk
0:02:28.4]} 32. Kb5 {[%clk 0:02:06]} 32... Bc1 {[%clk 0:02:25.3]} 33. Ka6 {[%clk
0:02:02.8]} 33... Bxb2 {[%clk 0:02:20.2]} 34. Kxa7 {[%clk 0:01:58.3]} 34... Bxc3
{[%clk 0:02:19.4]} 35. Kxb6 {[%clk 0:01:53.5]} 35... Kd6 {[%clk 0:02:18.5]} 36.
Bc4 {[%clk 0:01:47.9]} 36... g5 {[%clk 0:02:17.1]} 37. Bd3 {[%clk 0:01:44.4]}
37... f4 {[%clk 0:02:06.2]} 38. Be2 {[%clk 0:01:41.1]} 38... Ke5 {[%clk
0:02:01.8]} 39. Kb5 {[%clk 0:01:37.6]} 39... Kd4 {[%clk 0:02:00]} 40. Bf3 {[%clk
0:01:33.4]} 40... Ke3 {[%clk 0:01:57.8]} 41. Kc4 {[%clk 0:01:30.4]} 41... Ba5
{[%clk 0:01:49.4]} 42. b4 {[%clk 0:01:26.8]} 42... Bc7 {[%clk 0:01:44.7]} 43. b5
{[%clk 0:01:22.7]} 43... Kf2 {[%clk 0:01:42.9]} 44. Kd5 {[%clk 0:01:17.6]} 44...
Kg3 {[%clk 0:01:40.7]} 45. Kc6 {[%clk 0:01:14]} 45... Bb8 {[%clk 0:01:37.1]} 46.
Kb7 {[%clk 0:01:09.9]} 46... Be5 {[%clk 0:01:35]} 47. b6 {[%clk 0:01:06.2]}
47... g4 {[%clk 0:01:33.3]} 48. Be4 {[%clk 0:01:02.8]} 48... f3 {[%clk
0:01:30.3]} 49. gxf3 {[%clk 0:00:59.4]} 49... gxf3 {[%clk 0:01:29.6]} 50. Bd3
{[%clk 0:00:56.3]} 50... h5 {[%clk 0:01:27.9]} 51. Kc6 {[%clk 0:00:53.3]} 51...
h4 {[%clk 0:01:26.8]} 52. b7 {[%clk 0:00:46.6]} 52... h3 {[%clk 0:01:24.1]} 53.
Kd7 {[%clk 0:00:41.7]} 53... h2 {[%clk 0:01:21.9]} 0-1

[Event "Live Chess"]
[Site "Chess.com"]
[Date "2024.06.02"]
[Round "-"]
[White "stevochess11"]
[Black "toog"]
[Result "0-1"]
[WhiteElo "1702"]
[BlackElo "2606"]
[TimeControl "300"]
[EndTime "16:48:22 PDT"]
[Termination "toog won by checkmate"]

1. d4 {[%clk 0:04:56]} 1... e6 {[%clk 0:04:59.9]} 2. Nf3 {[%clk 0:04:54.7]} 2...
d5 {[%clk 0:04:59.8]} 3. e3 {[%clk 0:04:53.5]} 3... c5 {[%clk 0:04:58]} 4. b3
{[%clk 0:04:50.6]} 4... Nc6 {[%clk 0:04:57.9]} 5. Bd3 {[%clk 0:04:48.7]} 5...
Nf6 {[%clk 0:04:55.5]} 6. Nbd2 {[%clk 0:04:43.7]} 6... Be7 {[%clk 0:04:48.5]} 7.
a3 {[%clk 0:04:42.2]} 7... O-O {[%clk 0:04:47.1]} 8. Bb2 {[%clk 0:04:41]} 8...
b6 {[%clk 0:04:46.1]} 9. O-O {[%clk 0:04:39.2]} 9... Bb7 {[%clk 0:04:45.3]} 10.
Ne5 {[%clk 0:04:37]} 10... Nxe5 {[%clk 0:04:43.6]} 11. dxe5 {[%clk 0:04:35.8]}
11... Nd7 {[%clk 0:04:43.1]} 12. f4 {[%clk 0:04:32.3]} 12... f5 {[%clk
0:04:36.5]} 13. Nf3 {[%clk 0:04:12.5]} 13... Rc8 {[%clk 0:04:33]} 14. Ng5 {[%clk
0:04:07.9]} 14... Bxg5 {[%clk 0:04:30.1]} 15. fxg5 {[%clk 0:04:07.8]} 15... Qxg5
{[%clk 0:04:29.2]} 16. Rf3 {[%clk 0:04:01.1]} 16... c4 {[%clk 0:04:26.3]} 17.
Rg3 {[%clk 0:03:59.5]} 17... Qh6 {[%clk 0:04:23.9]} 18. bxc4 {[%clk 0:03:55]}
18... dxc4 {[%clk 0:04:23.8]} 19. Bxf5 {[%clk 0:03:50.2]} 19... Rxf5 {[%clk
0:04:16.9]} 20. Qxd7 {[%clk 0:03:48.5]} 20... Rf7 {[%clk 0:04:16.5]} 21. Qd4
{[%clk 0:03:41.7]} 21... Qh5 {[%clk 0:03:53.3]} 22. Rd1 {[%clk 0:03:37.5]} 22...
Bd5 {[%clk 0:03:31]} 23. Bc3 {[%clk 0:03:25.7]} 23... Qe2 {[%clk 0:03:26.1]} 24.
Bb4 {[%clk 0:03:18.2]} 24... Qxc2 {[%clk 0:03:23.3]} 25. Qg4 {[%clk 0:02:58.4]}
25... Qf2+ {[%clk 0:03:21.3]} 26. Kh1 {[%clk 0:02:55.3]} 26... Qf1+ {[%clk
0:03:20.5]} 27. Rxf1 {[%clk 0:02:54.4]} 27... Rxf1# {[%clk 0:03:20]} 0-1

[Event "Live Chess"]
[Site "Chess.com"]
[Date "2024.06.02"]
[Round "-"]
[White "KwikPhoenix"]
[Black "TigerTank70"]
[Result "0-1"]
[WhiteElo "2407"]
[BlackElo "2245"]
[TimeControl "300"]
[EndTime "16:48:55 PDT"]
[Termination "TigerTank70 won by resignation"]

1. b3 {[%clk 0:04:53.4]} 1... e5 {[%clk 0:04:57.9]} 2. Bb2 {[%clk 0:04:53.3]}
2... Nc6 {[%clk 0:04:57.1]} 3. e3 {[%clk 0:04:52.6]} 3... d5 {[%clk 0:04:55.7]}
4. Bb5 {[%clk 0:04:51.8]} 4... Bd6 {[%clk 0:04:53.6]} 5. Nf3 {[%clk 0:04:50.5]}
5... Qe7 {[%clk 0:04:50.7]} 6. c4 {[%clk 0:04:49.8]} 6... dxc4 {[%clk
0:04:47.7]} 7. bxc4 {[%clk 0:04:49.7]} 7... Bd7 {[%clk 0:04:45.7]} 8. O-O {[%clk
0:04:45.5]} 8... a6 {[%clk 0:04:44.5]} 9. Bxc6 {[%clk 0:04:43.3]} 9... Bxc6
{[%clk 0:04:44.4]} 10. d4 {[%clk 0:04:42.5]} 10... e4 {[%clk 0:04:40.7]} 11.
Nfd2 {[%clk 0:04:39.3]} 11... Qh4 {[%clk 0:04:31.8]} 12. g3 {[%clk 0:04:38.4]}
12... Qh3 {[%clk 0:04:27.5]} 13. Nc3 {[%clk 0:04:34.5]} 13... Nf6 {[%clk
0:04:26]} 14. d5 {[%clk 0:04:22.9]} 14... Ng4 {[%clk 0:04:13.6]} 15. Qxg4 {[%clk
0:04:21.4]} 15... Qxg4 {[%clk 0:04:12.4]} 16. dxc6 {[%clk 0:04:21.3]} 16... bxc6
{[%clk 0:04:11.7]} 17. Ncxe4 {[%clk 0:04:20.8]} 17... O-O {[%clk 0:04:07.8]} 18.
Kg2 {[%clk 0:04:18.1]} 18... Rab8 {[%clk 0:04:05.9]} 19. h3 {[%clk 0:04:17.5]}
19... Qg6 {[%clk 0:04:03.5]} 20. Bc3 {[%clk 0:04:15.7]} 20... Bb4 {[%clk
0:04:01.9]} 21. Bd4 {[%clk 0:04:12.5]} 21... Rfe8 {[%clk 0:03:59]} 22. f3 {[%clk
0:04:08.6]} 22... c5 {[%clk 0:03:57.5]} 23. Bxc5 {[%clk 0:04:05]} 23... Bxc5
{[%clk 0:03:54.9]} 24. Nxc5 {[%clk 0:04:04.9]} 24... Rxe3 {[%clk 0:03:52.5]} 25.
Rf2 {[%clk 0:04:04.5]} 25... h5 {[%clk 0:03:43.7]} 26. h4 {[%clk 0:04:03.2]}
26... Rb2 {[%clk 0:03:35.6]} 27. Nce4 {[%clk 0:03:59.7]} 27... Ra3 {[%clk
0:03:27.9]} 28. Re1 {[%clk 0:03:50.3]} 28... Raxa2 {[%clk 0:03:26.9]} 29. Ng5
{[%clk 0:03:35.7]} 29... f6 {[%clk 0:03:25.3]} 30. Nge4 {[%clk 0:03:35.5]} 30...
f5 {[%clk 0:03:15.6]} 0-1

[Event "Live Chess"]
[Site "Chess.com"]
[Date "2024.06.02"]
[Round "-"]
[White "GEMdzq"]
[Black "NebodarMatevich"]
[Result "1-0"]
[WhiteElo "2294"]
[BlackElo "1547"]
[TimeControl "300"]
[EndTime "16:49:32 PDT"]
[Termination "GEMdzq won by checkmate"]

1. e4 {[%clk 0:04:58.3]} 1... d5 {[%clk 0:04:59.3]} 2. exd5 {[%clk 0:04:56.9]}
2... Qxd5 {[%clk 0:04:59.2]} 3. Nc3 {[%clk 0:04:55]} 3... Qd6 {[%clk 0:04:58.6]}
4. d4 {[%clk 0:04:54.3]} 4... Nf6 {[%clk 0:04:57.7]} 5. Bc4 {[%clk 0:04:42.8]}
5... a6 {[%clk 0:04:57]} 6. Nf3 {[%clk 0:04:41.8]} 6... b5 {[%clk 0:04:56.6]} 7.
Bb3 {[%clk 0:04:39.3]} 7... c5 {[%clk 0:04:56.2]} 8. dxc5 {[%clk 0:04:29.4]}
8... Qxd1+ {[%clk 0:04:55.4]} 9. Kxd1 {[%clk 0:04:28.8]} 9... Bb7 {[%clk
0:04:54.5]} 10. Bg5 {[%clk 0:04:14]} 10... Nbd7 {[%clk 0:04:47.9]} 11. Bxf6
{[%clk 0:04:10.5]} 11... Nxf6 {[%clk 0:04:46.8]} 12. Ne5 {[%clk 0:04:09.5]}
12... e6 {[%clk 0:04:44.7]} 13. c6 {[%clk 0:04:08.7]} 13... Bc8 {[%clk
0:04:38.4]} 14. Ke2 {[%clk 0:04:06]} 14... Bd6 {[%clk 0:04:37]} 15. Nd3 {[%clk
0:03:58.5]} 15... O-O {[%clk 0:04:25.9]} 16. Rad1 {[%clk 0:03:56.8]} 16... Bc7
{[%clk 0:04:22.1]} 17. g3 {[%clk 0:03:48.9]} 17... Rd8 {[%clk 0:04:02.3]} 18. a4
{[%clk 0:03:33.1]} 18... b4 {[%clk 0:04:01.1]} 19. Nxb4 {[%clk 0:03:31.8]} 19...
a5 {[%clk 0:04:00.4]} 20. Nd3 {[%clk 0:03:28.4]} 20... Ra6 {[%clk 0:03:59.7]}
21. f4 {[%clk 0:03:19.6]} 21... Rxc6 {[%clk 0:03:58.3]} 22. Ne5 {[%clk
0:03:18.8]} 22... Rc5 {[%clk 0:03:40.5]} 23. Rxd8+ {[%clk 0:03:16.9]} 23... Bxd8
{[%clk 0:03:40]} 24. Rd1 {[%clk 0:03:16]} 24... Bc7 {[%clk 0:03:38.4]} 25. Nb5
{[%clk 0:03:15.3]} 25... Nd5 {[%clk 0:03:25.7]} 26. Nxc7 {[%clk 0:03:10.2]}
26... Rxc7 {[%clk 0:03:24.5]} 27. c4 {[%clk 0:03:09.3]} 27... f6 {[%clk
0:02:53.9]} 28. cxd5 {[%clk 0:03:02.6]} 28... fxe5 {[%clk 0:02:52.2]} 29. dxe6
{[%clk 0:03:02.2]} 29... exf4 {[%clk 0:02:50.6]} 30. Rd8# {[%clk 0:03:00.9]} 1-0

[Event "Live Chess"]
[Site "Chess.com"]
[Date "2024.06.02"]
[Round "-"]
[White "educatedlad"]
[Black "Outspanner"]
[Result "1-0"]
[WhiteElo "1717"]
[BlackElo "1544"]
[TimeControl "300"]
[EndTime "16:50:30 PDT"]
[Termination "educatedlad won by resignation"]

1. d4 {[%clk 0:04:58.8]} 1... Nf6 {[%clk 0:04:57.9]} 2. Bg5 {[%clk 0:04:56.6]}
2... d5 {[%clk 0:04:55.1]} 3. e3 {[%clk 0:04:54.4]} 3... c5 {[%clk 0:04:48.6]}
4. Bxf6 {[%clk 0:04:52.1]} 4... exf6 {[%clk 0:04:40.7]} 5. Nc3 {[%clk
0:04:46.4]} 5... cxd4 {[%clk 0:04:34.1]} 6. Qxd4 {[%clk 0:04:42.1]} 6... Be6
{[%clk 0:04:21.6]} 7. Bb5+ {[%clk 0:04:38.1]} 7... Nc6 {[%clk 0:04:18.4]} 8. Qa4
{[%clk 0:04:37]} 8... Qb6 {[%clk 0:04:07.9]} 9. O-O-O {[%clk 0:04:34]} 9... Rd8
{[%clk 0:04:03.5]} 10. Nge2 {[%clk 0:04:28.1]} 10... a6 {[%clk 0:04:02.5]} 11.
Bxc6+ {[%clk 0:04:20]} 11... bxc6 {[%clk 0:04:00.1]} 12. Nd4 {[%clk 0:04:17.3]}
12... Bd7 {[%clk 0:03:52.3]} 13. Nb3 {[%clk 0:03:58.9]} 13... Be7 {[%clk
0:03:38.5]} 14. Qa5 {[%clk 0:03:48.5]} 14... Qb7 {[%clk 0:03:27.7]} 15. Nc5
{[%clk 0:03:45.3]} 15... Qb5 {[%clk 0:03:07.9]} 16. Nxb5 {[%clk 0:03:43.5]} 1-0

[Event "Live Chess"]
[Site "Chess.com"]
[Date "2024.06.02"]
[Round "-"]
[White "cymbalshift"]
[Black "MagnersCarlsberg2870"]
[Result "1-0"]
[WhiteElo "1739"]
[BlackElo "1772"]
[TimeControl "300"]
[EndTime "16:50:56 PDT"]
[Termination "cymbalshift won by resignation"]

1. d4 {[%clk 0:04:58.2]} 1... Nf6 {[%clk 0:04:58.8]} 2. Nc3 {[%clk 0:04:56.7]}
2... e6 {[%clk 0:04:55.7]} 3. e4 {[%clk 0:04:54.9]} 3... Bb4 {[%clk 0:04:54.7]}
4. e5 {[%clk 0:04:52.7]} 4... Nd5 {[%clk 0:04:53.4]} 5. Qg4 {[%clk 0:04:50.1]}
5... Nxc3 {[%clk 0:04:49.5]} 6. a3 {[%clk 0:04:49]} 6... Nd5+ {[%clk 0:04:29.7]}
7. axb4 {[%clk 0:04:47.1]} 7... g6 {[%clk 0:04:26.5]} 8. c4 {[%clk 0:04:38.7]}
8... Nxb4 {[%clk 0:04:25.1]} 9. Bg5 {[%clk 0:04:36.3]} 9... f5 {[%clk
0:04:04.9]} 10. Qh4 {[%clk 0:04:27.6]} 10... Nc2+ {[%clk 0:04:03.7]} 11. Kd2
{[%clk 0:04:08.8]} 11... Nxa1 {[%clk 0:04:02.5]} 12. Bxd8 {[%clk 0:04:06.6]}
12... O-O {[%clk 0:04:01.6]} 13. Kc3 {[%clk 0:03:51.5]} 13... Nc6 {[%clk
0:03:57.9]} 14. Bf6 {[%clk 0:03:49.3]} 14... h5 {[%clk 0:03:45.9]} 15. Qg5
{[%clk 0:03:47.2]} 15... Rf7 {[%clk 0:03:31.1]} 16. Qxg6+ {[%clk 0:03:44.7]} 1-0

[Event "Live Chess"]
[Site "Chess.com"]
[Date "2024.06.02"]
[Round "-"]
[White "NAZRIZ1977"]
[Black "RichardABates"]
[Result "1-0"]
[WhiteElo "2166"]
[BlackElo "2310"]
[TimeControl "300"]
[EndTime "16:51:21 PDT"]
[Termination "NAZRIZ1977 won by checkmate"]

1. d4 {[%clk 0:04:54.4]} 1... Nf6 {[%clk 0:04:58.5]} 2. Nf3 {[%clk 0:04:53.1]}
2... e6 {[%clk 0:04:57]} 3. e3 {[%clk 0:04:52.2]} 3... c5 {[%clk 0:04:54.1]} 4.
Nbd2 {[%clk 0:04:51.3]} 4... cxd4 {[%clk 0:04:52.4]} 5. exd4 {[%clk 0:04:50.5]}
5... Be7 {[%clk 0:04:50.5]} 6. Bd3 {[%clk 0:04:49.5]} 6... O-O {[%clk
0:04:48.8]} 7. O-O {[%clk 0:04:48.8]} 7... b6 {[%clk 0:04:47.7]} 8. Qe2 {[%clk
0:04:47.8]} 8... Bb7 {[%clk 0:04:46.3]} 9. c3 {[%clk 0:04:46.8]} 9... d6 {[%clk
0:04:44.9]} 10. Re1 {[%clk 0:04:45.4]} 10... Nbd7 {[%clk 0:04:43.5]} 11. Ne4
{[%clk 0:04:44.9]} 11... Re8 {[%clk 0:04:41.7]} 12. Bf4 {[%clk 0:04:36.2]} 12...
Bf8 {[%clk 0:04:39.7]} 13. Nxd6 {[%clk 0:04:26.1]} 13... Bxd6 {[%clk 0:04:32.1]}
14. Bxd6 {[%clk 0:04:25.2]} 14... Nf8 {[%clk 0:04:28.6]} 15. Bf4 {[%clk
0:04:11.7]} 15... Ng6 {[%clk 0:04:26.6]} 16. Bg5 {[%clk 0:04:09.5]} 16... h6
{[%clk 0:04:24.5]} 17. Bd2 {[%clk 0:04:03.5]} 17... Qd5 {[%clk 0:03:56.2]} 18.
Bc4 {[%clk 0:03:47]} 18... Qh5 {[%clk 0:03:53.4]} 19. Ne5 {[%clk 0:03:38.7]}
19... Nxe5 {[%clk 0:03:30.7]} 20. Qxh5 {[%clk 0:03:35]} 20... Nxh5 {[%clk
0:03:29.2]} 21. dxe5 {[%clk 0:03:34.4]} 21... Red8 {[%clk 0:03:22.7]} 22. Be3
{[%clk 0:03:25.3]} 22... g5 {[%clk 0:03:21.2]} 23. Rad1 {[%clk 0:03:18.7]} 23...
Nf4 {[%clk 0:03:10.2]} 24. Bxf4 {[%clk 0:03:12.4]} 24... gxf4 {[%clk 0:03:08.9]}
25. f3 {[%clk 0:03:11.7]} 25... Rac8 {[%clk 0:03:03.2]} 26. Bb3 {[%clk
0:02:57.9]} 26... Kg7 {[%clk 0:02:48.5]} 27. Kf2 {[%clk 0:02:55.9]} 27... Kg6
{[%clk 0:02:35.6]} 28. Bc2+ {[%clk 0:02:47.7]} 28... Kg5 {[%clk 0:02:34.3]} 29.
g3 {[%clk 0:02:43]} 29... b5 {[%clk 0:02:20]} 30. h4+ {[%clk 0:02:36.6]} 30...
Kh5 {[%clk 0:02:10.4]} 31. g4+ {[%clk 0:02:26.1]} 31... Kxh4 {[%clk 0:02:07.9]}
32. Rh1+ {[%clk 0:02:25.1]} 32... Kg5 {[%clk 0:02:06.8]} 33. Rh5# {[%clk
0:02:24.2]} 1-0

[Event "Live Chess"]
[Site "Chess.com"]
[Date "2024.06.02"]
[Round "-"]
[White "Crowded_House"]
[Black "Sir_Sigmund"]
[Result "1/2-1/2"]
[WhiteElo "1727"]
[BlackElo "1850"]
[TimeControl "300"]
[EndTime "16:51:43 PDT"]
[Termination "Game drawn - timeout vs insufficient material"]

1. d4 {[%clk 0:04:57.8]} 1... Nf6 {[%clk 0:04:57.8]} 2. Bg5 {[%clk 0:04:55.8]}
2... h6 {[%clk 0:04:55.4]} 3. Bh4 {[%clk 0:04:54.2]} 3... g5 {[%clk 0:04:53.7]}
4. Bg3 {[%clk 0:04:52.3]} 4... d6 {[%clk 0:04:53.1]} 5. e3 {[%clk 0:04:49.7]}
5... Bg7 {[%clk 0:04:52.6]} 6. c3 {[%clk 0:04:47.8]} 6... O-O {[%clk 0:04:51.8]}
7. Bd3 {[%clk 0:04:46.8]} 7... Re8 {[%clk 0:04:48.7]} 8. Nf3 {[%clk 0:04:45.8]}
8... Nc6 {[%clk 0:04:46.9]} 9. Nbd2 {[%clk 0:04:43.8]} 9... e5 {[%clk 0:04:42]}
10. dxe5 {[%clk 0:04:41.9]} 10... d5 {[%clk 0:04:40.4]} 11. exf6 {[%clk
0:04:39.2]} 11... Bxf6 {[%clk 0:04:37.8]} 12. O-O {[%clk 0:04:27.4]} 12... Bg4
{[%clk 0:04:29.7]} 13. Be2 {[%clk 0:04:24.7]} 13... Bf5 {[%clk 0:04:26.8]} 14.
Nb3 {[%clk 0:04:18.8]} 14... Qd7 {[%clk 0:04:13.4]} 15. Bd3 {[%clk 0:04:06.2]}
15... Bg4 {[%clk 0:04:10.8]} 16. Be2 {[%clk 0:04:04.5]} 16... Bf5 {[%clk
0:04:09.2]} 17. Nbd4 {[%clk 0:04:02.3]} 17... Nxd4 {[%clk 0:04:05.6]} 18. Nxd4
{[%clk 0:04:00.8]} 18... Bg6 {[%clk 0:04:04.7]} 19. Bd3 {[%clk 0:03:58.3]} 19...
c5 {[%clk 0:03:54.9]} 20. Nf3 {[%clk 0:03:45]} 20... Bh5 {[%clk 0:03:52.5]} 21.
Be2 {[%clk 0:03:43.3]} 21... Bg6 {[%clk 0:03:48.6]} 22. Qd2 {[%clk 0:03:34.4]}
22... Rad8 {[%clk 0:03:46.1]} 23. Rfd1 {[%clk 0:03:33]} 23... Qe6 {[%clk
0:03:34.8]} 24. Bd3 {[%clk 0:03:26.5]} 24... Bh5 {[%clk 0:03:31]} 25. Qe1 {[%clk
0:03:15.7]} 25... Bxf3 {[%clk 0:03:07.5]} 26. gxf3 {[%clk 0:03:13.2]} 26... h5
{[%clk 0:03:06.7]} 27. h3 {[%clk 0:02:49.7]} 27... Qxh3 {[%clk 0:03:00.8]} 28.
Qf1 {[%clk 0:02:48.5]} 28... Qe6 {[%clk 0:02:51.6]} 29. Bb5 {[%clk 0:02:30.5]}
29... Re7 {[%clk 0:02:45.4]} 30. Kg2 {[%clk 0:02:26.3]} 30... h4 {[%clk
0:02:38.9]} 31. Bh2 {[%clk 0:02:24.7]} 31... a6 {[%clk 0:02:36.5]} 32. Be2
{[%clk 0:02:15.6]} 32... Kg7 {[%clk 0:02:13.9]} 33. a3 {[%clk 0:02:12.3]} 33...
Rg8 {[%clk 0:01:58.4]} 34. Rd2 {[%clk 0:02:01.8]} 34... Be5 {[%clk 0:01:38.7]}
35. Rad1 {[%clk 0:01:45.7]} 35... Bxh2 {[%clk 0:01:35.1]} 36. Kxh2 {[%clk
0:01:44.9]} 36... Qe5+ {[%clk 0:01:27.8]} 37. Kh1 {[%clk 0:01:41]} 37... Rd8
{[%clk 0:01:11.7]} 38. Qg2 {[%clk 0:01:36.2]} 38... f6 {[%clk 0:01:04.5]} 39.
Qh2 {[%clk 0:01:34.7]} 39... Qe6 {[%clk 0:00:59.9]} 40. Qg2 {[%clk 0:01:28.2]}
40... Kf7 {[%clk 0:00:56.4]} 41. Qg4 {[%clk 0:01:26.9]} 41... Qe5 {[%clk
0:00:51.7]} 42. f4 {[%clk 0:01:12.4]} 42... Qe4+ {[%clk 0:00:45.9]} 43. Bf3
{[%clk 0:01:04.7]} 43... Qe6 {[%clk 0:00:44.9]} 44. Qxe6+ {[%clk 0:01:03.1]}
44... Kxe6 {[%clk 0:00:42.3]} 45. Bxd5+ {[%clk 0:00:58.3]} 45... Kf5 {[%clk
0:00:41.3]} 46. Be4+ {[%clk 0:00:53.8]} 46... Kxe4 {[%clk 0:00:38.8]} 47. Rxd8
{[%clk 0:00:52.3]} 47... Kf3 {[%clk 0:00:38.5]} 48. R1d2 {[%clk 0:00:47.6]}
48... g4 {[%clk 0:00:33.2]} 49. R8d7 {[%clk 0:00:44.7]} 49... Rxd7 {[%clk
0:00:29.2]} 50. Rxd7 {[%clk 0:00:43]} 50... Kxf2 {[%clk 0:00:29.1]} 51. Rd2+
{[%clk 0:00:41.2]} 51... Kxe3 {[%clk 0:00:27.8]} 52. Rd6 {[%clk 0:00:38.3]}
52... f5 {[%clk 0:00:22.7]} 53. Rd7 {[%clk 0:00:33.5]} 53... Kxf4 {[%clk
0:00:16.8]} 54. Rxb7 {[%clk 0:00:32.4]} 54... Kf3 {[%clk 0:00:15.6]} 55. Rd7
{[%clk 0:00:28]} 55... f4 {[%clk 0:00:11.3]} 56. Rd3+ {[%clk 0:00:26.8]} 56...
Ke2 {[%clk 0:00:10.6]} 57. Rd7 {[%clk 0:00:24.9]} 57... f3 {[%clk 0:00:09.5]}
58. Re7+ {[%clk 0:00:23.9]} 58... Kf2 {[%clk 0:00:08.1]} 59. Rh7 {[%clk
0:00:19.7]} 59... h3 {[%clk 0:00:06.3]} 60. Rxh3 {[%clk 0:00:18.3]} 60... gxh3
{[%clk 0:00:05.1]} 61. Kh2 {[%clk 0:00:17.7]} 61... Ke2 {[%clk 0:00:03.8]} 62.
Kxh3 {[%clk 0:00:16.8]} 62... f2 {[%clk 0:00:03.7]} 63. Kg3 {[%clk 0:00:16.3]}
63... f1=Q {[%clk 0:00:03.5]} 64. Kg4 {[%clk 0:00:15.9]} 64... Qf3+ {[%clk
0:00:02.4]} 65. Kg5 {[%clk 0:00:15.8]} 65... Qd3 {[%clk 0:00:01.8]} 66. Kh6
{[%clk 0:00:14.9]} 66... Qc2 {[%clk 0:00:01.7]} 67. Kg7 {[%clk 0:00:14.6]} 67...
Qxb2 {[%clk 0:00:01.6]} 68. Kf7 {[%clk 0:00:13.7]} 68... Qxc3 {[%clk 0:00:01]}
69. Ke7 {[%clk 0:00:12.9]} 69... Qxa3 {[%clk 0:00:00.8]} 70. Kd7 {[%clk
0:00:12.7]} 1/2-1/2

[Event "Live Chess"]
[Site "Chess.com"]
[Date "2024.06.02"]
[Round "-"]
[White "PaulHumphreys"]
[Black "peteopeteo"]
[Result "1-0"]
[WhiteElo "1409"]
[BlackElo "1558"]
[TimeControl "300"]
[EndTime "16:51:48 PDT"]
[Termination "PaulHumphreys won by checkmate"]

1. d4 {[%clk 0:04:56.5]} 1... d5 {[%clk 0:04:56.9]} 2. Nc3 {[%clk 0:04:56.4]}
2... Nf6 {[%clk 0:04:56.2]} 3. Bf4 {[%clk 0:04:56.3]} 3... a6 {[%clk 0:04:54.3]}
4. e3 {[%clk 0:04:52.9]} 4... Bf5 {[%clk 0:04:51.5]} 5. Nf3 {[%clk 0:04:52.1]}
5... e6 {[%clk 0:04:50]} 6. Ne5 {[%clk 0:04:50.3]} 6... Nbd7 {[%clk 0:04:48.7]}
7. g4 {[%clk 0:04:49]} 7... Bg6 {[%clk 0:04:43.3]} 8. h4 {[%clk 0:04:44]} 8...
h5 {[%clk 0:04:38.9]} 9. g5 {[%clk 0:04:41.6]} 9... Ne4 {[%clk 0:04:34.2]} 10.
f3 {[%clk 0:04:36.4]} 10... Nxc3 {[%clk 0:04:24.3]} 11. bxc3 {[%clk 0:04:35]}
11... Bh7 {[%clk 0:03:41.7]} 12. Bd3 {[%clk 0:04:27.2]} 12... Nxe5 {[%clk
0:03:37.6]} 13. Bxe5 {[%clk 0:04:22.4]} 13... f6 {[%clk 0:03:22.1]} 14. Bxh7
{[%clk 0:04:04]} 14... fxe5 {[%clk 0:03:14]} 15. Bg6+ {[%clk 0:04:01]} 15... Ke7
{[%clk 0:03:12.5]} 16. f4 {[%clk 0:03:47.6]} 16... e4 {[%clk 0:03:07.7]} 17.
Bxh5 {[%clk 0:03:41.2]} 17... Qd6 {[%clk 0:02:50.1]} 18. Bg4 {[%clk 0:03:28.4]}
18... c5 {[%clk 0:02:45.3]} 19. Rb1 {[%clk 0:03:24]} 19... Rb8 {[%clk
0:02:39.6]} 20. a4 {[%clk 0:02:39.7]} 20... Kd7 {[%clk 0:02:33.6]} 21. f5 {[%clk
0:02:33.2]} 21... Qg3+ {[%clk 0:02:31.9]} 22. Kd2 {[%clk 0:02:29.7]} 22... Qf2+
{[%clk 0:02:28.3]} 23. Qe2 {[%clk 0:02:28]} 23... Qxe2+ {[%clk 0:02:18.7]} 24.
Kxe2 {[%clk 0:02:26.6]} 24... exf5 {[%clk 0:02:11.7]} 25. Bxf5+ {[%clk
0:02:24.5]} 25... Kc6 {[%clk 0:02:10.5]} 26. a5 {[%clk 0:02:18.5]} 26... Be7
{[%clk 0:02:08.4]} 27. Rb6+ {[%clk 0:02:13]} 27... Kc7 {[%clk 0:02:04.9]} 28.
Be6 {[%clk 0:02:06.4]} 28... Rbd8 {[%clk 0:01:54.2]} 29. Rhb1 {[%clk 0:01:36.6]}
29... Rd6 {[%clk 0:01:38.1]} 30. Rxb7+ {[%clk 0:01:33.2]} 30... Kd8 {[%clk
0:01:36.4]} 31. Rb8+ {[%clk 0:01:25.9]} 31... Kc7 {[%clk 0:01:35.7]} 32. Rxh8
{[%clk 0:01:05.4]} 32... Rxe6 {[%clk 0:01:34.9]} 33. Rbb8 {[%clk 0:00:57.4]}
33... cxd4 {[%clk 0:01:29.5]} 34. cxd4 {[%clk 0:00:55.1]} 34... Kd6 {[%clk
0:01:23.6]} 35. Rb6+ {[%clk 0:00:48.6]} 35... Kd7 {[%clk 0:01:22.8]} 36. Rxe6
{[%clk 0:00:45.1]} 36... Kxe6 {[%clk 0:01:22.7]} 37. Ra8 {[%clk 0:00:42.5]}
37... Kf5 {[%clk 0:01:19.3]} 38. Rxa6 {[%clk 0:00:39.2]} 38... Kg4 {[%clk
0:01:18.7]} 39. Re6 {[%clk 0:00:33.8]} 39... Bb4 {[%clk 0:01:16.6]} 40. a6
{[%clk 0:00:32.5]} 40... Kxh4 {[%clk 0:01:11]} 41. a7 {[%clk 0:00:30.9]} 41...
Kxg5 {[%clk 0:01:10.2]} 42. a8=Q {[%clk 0:00:29.6]} 42... g6 {[%clk 0:01:08.7]}
43. Qd8+ {[%clk 0:00:25.6]} 43... Kh6 {[%clk 0:01:05.9]} 44. Qf6 {[%clk
0:00:20.1]} 44... Ba3 {[%clk 0:00:53.4]} 45. Qxg6# {[%clk 0:00:17.2]} 1-0